[Event "Early-Titled-Tuesday-Blitz-October-03-2023"]
[Site "Chess.com"]
[Date "2023.10.03"]
[Round "9"]
[White "emeli_chess"]
[Black "dennisodessa"]
[Result "0-1"]
[WhiteElo "2352"]
[BlackElo "2482"]
[TimeControl "180+1"]
[EndTime "9:45:22 PDT"]
[Termination "dennisodessa won by resignation"]

1. d4 {[%clk 0:03:00.9]} 1... e6 {[%clk 0:03:00.9]} 2. c4 {[%clk 0:03:00.7]}
2... Nf6 {[%clk 0:03:01.2]} 3. Nc3 {[%clk 0:03:00.3]} 3... Bb4 {[%clk
0:03:02.1]} 4. Qc2 {[%clk 0:02:59.8]} 4... Nc6 {[%clk 0:03:02.2]} 5. Nf3 {[%clk
0:02:59.2]} 5... d6 {[%clk 0:03:03.1]} 6. e4 {[%clk 0:02:58.7]} 6... e5 {[%clk
0:02:59.2]} 7. d5 {[%clk 0:02:58.7]} 7... Bxc3+ {[%clk 0:02:59.1]} 8. Qxc3
{[%clk 0:02:58.7]} 8... Ne7 {[%clk 0:02:59.2]} 9. Bd3 {[%clk 0:02:58.9]} 9...
O-O {[%clk 0:02:57.5]} 10. h3 {[%clk 0:02:59.2]} 10... Ng6 {[%clk 0:02:56.5]}
11. g4 {[%clk 0:02:52.6]} 11... a5 {[%clk 0:02:49.3]} 12. c5 {[%clk 0:02:46.4]}
12... dxc5 {[%clk 0:02:41.7]} 13. Qxc5 {[%clk 0:02:37.9]} 13... c6 {[%clk
0:02:42.6]} 14. d6 {[%clk 0:02:23.3]} 14... Nd7 {[%clk 0:02:40.5]} 15. Qc3
{[%clk 0:02:19.4]} 15... Qf6 {[%clk 0:02:39.3]} 16. Bc4 {[%clk 0:01:57.7]} 16...
Nc5 {[%clk 0:02:29.8]} 17. Bg5 {[%clk 0:01:53.3]} 17... Qxd6 {[%clk 0:02:16.7]}
18. Rd1 {[%clk 0:01:51.8]} 18... Qc7 {[%clk 0:02:16.6]} 19. Qe3 {[%clk 0:01:24]}
19... Ne6 {[%clk 0:02:12.1]} 20. Bxe6 {[%clk 0:01:13.3]} 20... Bxe6 {[%clk
0:02:13]} 21. b3 {[%clk 0:01:12.3]} 21... a4 {[%clk 0:02:07.3]} 22. h4 {[%clk
0:01:04.4]} 22... Bxg4 {[%clk 0:01:55.3]} 23. h5 {[%clk 0:01:04.5]} 23... Nf4
{[%clk 0:01:48.6]} 24. Bxf4 {[%clk 0:01:03.9]} 24... exf4 {[%clk 0:01:49.5]} 25.
Qc3 {[%clk 0:01:02.3]} 25... Qe7 {[%clk 0:01:42.8]} 26. h6 {[%clk 0:00:40.3]}
26... Qxe4+ {[%clk 0:01:24]} 27. Kd2 {[%clk 0:00:40.1]} 27... f6 {[%clk
0:01:15.7]} 28. hxg7 {[%clk 0:00:33.5]} 28... Rfd8+ {[%clk 0:01:12.3]} 29. Kc1
{[%clk 0:00:33.1]} 29... Bxf3 {[%clk 0:01:12.7]} 30. Rxd8+ {[%clk 0:00:26.2]}
30... Rxd8 {[%clk 0:01:13.6]} 31. Re1 {[%clk 0:00:26.3]} 31... Qxe1+ {[%clk
0:01:06.5]} 32. Qxe1 {[%clk 0:00:25]} 32... Rd1+ {[%clk 0:01:07.4]} 33. Qxd1
{[%clk 0:00:25.5]} 33... Bxd1 {[%clk 0:01:08.3]} 34. Kxd1 {[%clk 0:00:25.6]}
34... axb3 {[%clk 0:01:08.8]} 35. a4 {[%clk 0:00:19.9]} 35... c5 {[%clk
0:01:06.7]} 36. Kd2 {[%clk 0:00:18.9]} 36... c4 {[%clk 0:01:07.6]} 37. Kc3
{[%clk 0:00:19.3]} 37... Kxg7 {[%clk 0:01:08.5]} 38. a5 {[%clk 0:00:17.8]} 38...
Kf7 {[%clk 0:01:08]} 0-1

[Event "Early-Titled-Tuesday-Blitz-October-03-2023"]
[Site "Chess.com"]
[Date "2023.10.03"]
[Round "9"]
[White "Lady_Nika"]
[Black "Balla_Tamas"]
[Result "0-1"]
[WhiteElo "2524"]
[BlackElo "2462"]
[TimeControl "180+1"]
[EndTime "9:45:28 PDT"]
[Termination "Balla_Tamas won by resignation"]

1. e4 {[%clk 0:03:00.9]} 1... c5 {[%clk 0:02:59.5]} 2. Nc3 {[%clk 0:03:00.9]}
2... Nc6 {[%clk 0:02:59.5]} 3. g3 {[%clk 0:03:01.2]} 3... g6 {[%clk 0:02:59.6]}
4. Bg2 {[%clk 0:03:01.5]} 4... Bg7 {[%clk 0:02:59.7]} 5. d3 {[%clk 0:03:01.9]}
5... e6 {[%clk 0:02:58.2]} 6. f4 {[%clk 0:03:02.2]} 6... Nge7 {[%clk 0:02:56.5]}
7. Nf3 {[%clk 0:03:02.1]} 7... O-O {[%clk 0:02:56.2]} 8. O-O {[%clk 0:03:02.1]}
8... d6 {[%clk 0:02:56.5]} 9. Rb1 {[%clk 0:03:02]} 9... Rb8 {[%clk 0:02:53.2]}
10. Be3 {[%clk 0:03:01.8]} 10... b5 {[%clk 0:02:52.9]} 11. Ne2 {[%clk
0:03:01.9]} 11... b4 {[%clk 0:02:41.7]} 12. g4 {[%clk 0:03:00.6]} 12... f5
{[%clk 0:02:41.2]} 13. h3 {[%clk 0:02:59]} 13... Qa5 {[%clk 0:02:23.2]} 14. Nc1
{[%clk 0:02:56.9]} 14... e5 {[%clk 0:02:21.6]} 15. gxf5 {[%clk 0:02:54]} 15...
gxf5 {[%clk 0:02:19.3]} 16. fxe5 {[%clk 0:02:48.1]} 16... dxe5 {[%clk
0:02:11.5]} 17. Nb3 {[%clk 0:02:47.6]} 17... Qxa2 {[%clk 0:01:17.3]} 18. Bxc5
{[%clk 0:02:46.6]} 18... fxe4 {[%clk 0:01:11.7]} 19. dxe4 {[%clk 0:02:46]} 19...
Be6 {[%clk 0:01:12]} 20. Bxe7 {[%clk 0:02:44.1]} 20... Nxe7 {[%clk 0:01:12.9]}
21. Ra1 {[%clk 0:02:41.5]} 21... Qxb2 {[%clk 0:01:12.8]} 22. Rxa7 {[%clk
0:02:40.9]} 22... Bxb3 {[%clk 0:01:10.4]} 23. cxb3 {[%clk 0:02:38.4]} 23... Ng6
{[%clk 0:01:09.6]} 24. Qd5+ {[%clk 0:02:30.1]} 24... Kh8 {[%clk 0:01:07.4]} 25.
Qd7 {[%clk 0:02:24.2]} 25... Rg8 {[%clk 0:01:03.2]} 26. Ng5 {[%clk 0:02:21.9]}
26... h6 {[%clk 0:00:36.2]} 27. Nf7+ {[%clk 0:02:08.4]} 27... Kh7 {[%clk
0:00:36.5]} 28. Rf2 {[%clk 0:02:08.4]} 28... Qc1+ {[%clk 0:00:32.2]} 29. Bf1
{[%clk 0:02:06.6]} 29... Qe3 {[%clk 0:00:22.2]} 30. Qf5 {[%clk 0:02:05.4]} 30...
Qxa7 {[%clk 0:00:20.7]} 31. Bc4 {[%clk 0:01:33.7]} 31... Rb6 {[%clk 0:00:18.7]}
32. Kh2 {[%clk 0:01:29.7]} 32... Rf6 {[%clk 0:00:18.5]} 33. Qxf6 {[%clk
0:01:24.6]} 33... Bxf6 {[%clk 0:00:18.4]} 34. Rxf6 {[%clk 0:01:24.9]} 34... Rg7
{[%clk 0:00:14.8]} 35. Rf5 {[%clk 0:01:19.9]} 35... Qa2+ {[%clk 0:00:14.7]} 36.
Kh1 {[%clk 0:01:18.8]} 36... Qb1+ {[%clk 0:00:15]} 37. Kh2 {[%clk 0:01:17.9]}
37... Qc2+ {[%clk 0:00:15.4]} 38. Kg1 {[%clk 0:01:10.3]} 38... Nf4+ {[%clk
0:00:14.6]} 39. Ng5+ {[%clk 0:01:08]} 39... Rxg5+ {[%clk 0:00:14.5]} 0-1

[Event "Early-Titled-Tuesday-Blitz-October-03-2023"]
[Site "Chess.com"]
[Date "2023.10.03"]
[Round "9"]
[White "Heydarli77"]
[Black "pankajfm"]
[Result "1-0"]
[WhiteElo "2308"]
[BlackElo "2101"]
[TimeControl "180+1"]
[EndTime "9:45:29 PDT"]
[Termination "Heydarli77 won by resignation"]

1. d4 {[%clk 0:03:00.7]} 1... Nf6 {[%clk 0:02:57.9]} 2. c4 {[%clk 0:02:53.7]}
2... g6 {[%clk 0:02:57.3]} 3. Nc3 {[%clk 0:02:53.6]} 3... Bg7 {[%clk 0:02:55.5]}
4. b3 {[%clk 0:02:53.1]} 4... O-O {[%clk 0:02:54.5]} 5. Bb2 {[%clk 0:02:53.3]}
5... c5 {[%clk 0:02:49.6]} 6. dxc5 {[%clk 0:02:50.5]} 6... Qa5 {[%clk
0:02:49.9]} 7. Qd2 {[%clk 0:02:50.2]} 7... Qxc5 {[%clk 0:02:42.1]} 8. Nf3 {[%clk
0:02:49.9]} 8... Nc6 {[%clk 0:02:40.4]} 9. e3 {[%clk 0:02:49.8]} 9... d6 {[%clk
0:02:31.9]} 10. Be2 {[%clk 0:02:49.5]} 10... h6 {[%clk 0:02:21.5]} 11. O-O
{[%clk 0:02:46.8]} 11... Be6 {[%clk 0:02:22.1]} 12. Rfd1 {[%clk 0:02:43.4]}
12... Rfd8 {[%clk 0:02:21.5]} 13. a3 {[%clk 0:02:34.5]} 13... Qa5 {[%clk
0:02:19.3]} 14. Nd4 {[%clk 0:02:25.5]} 14... Nxd4 {[%clk 0:02:11.9]} 15. exd4
{[%clk 0:02:24.4]} 15... d5 {[%clk 0:02:08.4]} 16. b4 {[%clk 0:02:19.8]} 16...
Qc7 {[%clk 0:02:03.7]} 17. c5 {[%clk 0:02:19.4]} 17... Ne4 {[%clk 0:01:49.5]}
18. Qe3 {[%clk 0:02:13.8]} 18... Nxc3 {[%clk 0:01:47.3]} 19. Bxc3 {[%clk
0:02:12.9]} 19... b6 {[%clk 0:01:46.3]} 20. b5 {[%clk 0:02:00.8]} 20... bxc5
{[%clk 0:01:45.3]} 21. dxc5 {[%clk 0:02:00]} 21... Bxc3 {[%clk 0:01:22.6]} 22.
Qxc3 {[%clk 0:01:59.6]} 22... Rac8 {[%clk 0:01:07.5]} 23. Rac1 {[%clk
0:01:53.5]} 23... Qf4 {[%clk 0:01:07.1]} 24. g3 {[%clk 0:01:50.5]} 24... Qb8
{[%clk 0:00:58.1]} 25. a4 {[%clk 0:01:48.8]} 25... Bh3 {[%clk 0:00:51]} 26. Bf3
{[%clk 0:01:40.5]} 26... e5 {[%clk 0:00:24.9]} 27. Rxd5 {[%clk 0:01:34.6]} 27...
e4 {[%clk 0:00:19.7]} 28. Bxe4 {[%clk 0:01:24.1]} 28... Rxd5 {[%clk 0:00:16.9]}
29. Bxd5 {[%clk 0:01:24.1]} 29... Rd8 {[%clk 0:00:17.8]} 30. Qf3 {[%clk
0:01:22.6]} 30... Qc7 {[%clk 0:00:13.4]} 31. c6 {[%clk 0:01:19.9]} 31... h5
{[%clk 0:00:11.7]} 32. Re1 {[%clk 0:01:17.9]} 32... Bg4 {[%clk 0:00:11.1]} 33.
Qe4 {[%clk 0:01:16.2]} 33... Bf5 {[%clk 0:00:09.7]} 34. Qc4 {[%clk 0:01:12.7]}
34... Kg7 {[%clk 0:00:06.3]} 35. h4 {[%clk 0:01:12]} 35... Qb8 {[%clk
0:00:03.3]} 36. c7 {[%clk 0:01:09.8]} 1-0

[Event "Early-Titled-Tuesday-Blitz-October-03-2023"]
[Site "Chess.com"]
[Date "2023.10.03"]
[Round "9"]
[White "EvgenyBurmakin"]
[Black "LuisFSiles"]
[Result "0-1"]
[WhiteElo "2329"]
[BlackElo "2279"]
[TimeControl "180+1"]
[EndTime "9:45:30 PDT"]
[Termination "LuisFSiles won on time"]

1. e4 {[%clk 0:02:31.6]} 1... c5 {[%clk 0:02:55.4]} 2. Nc3 {[%clk 0:02:28.9]}
2... Nc6 {[%clk 0:02:55.3]} 3. Bb5 {[%clk 0:02:27.9]} 3... Nd4 {[%clk
0:02:54.9]} 4. Bc4 {[%clk 0:02:28.3]} 4... g6 {[%clk 0:02:55.2]} 5. Nf3 {[%clk
0:02:28.4]} 5... Bg7 {[%clk 0:02:55.1]} 6. Nxd4 {[%clk 0:02:28.1]} 6... cxd4
{[%clk 0:02:56]} 7. Qf3 {[%clk 0:02:28.4]} 7... Nh6 {[%clk 0:02:56]} 8. Ne2
{[%clk 0:02:19.7]} 8... O-O {[%clk 0:02:51.6]} 9. d3 {[%clk 0:02:18.4]} 9... Ng4
{[%clk 0:02:50.8]} 10. Bb3 {[%clk 0:02:12.8]} 10... Ne5 {[%clk 0:02:49.6]} 11.
Qg3 {[%clk 0:02:11.5]} 11... Nc6 {[%clk 0:02:49.8]} 12. h4 {[%clk 0:02:07.1]}
12... Na5 {[%clk 0:02:07.7]} 13. h5 {[%clk 0:02:06.3]} 13... Nxb3 {[%clk
0:02:07.7]} 14. axb3 {[%clk 0:02:07.2]} 14... d6 {[%clk 0:01:52.6]} 15. hxg6
{[%clk 0:02:05.7]} 15... fxg6 {[%clk 0:01:52.1]} 16. Qh4 {[%clk 0:02:02.8]}
16... h5 {[%clk 0:01:50.3]} 17. Nf4 {[%clk 0:01:51.9]} 17... Qe8 {[%clk
0:01:46.6]} 18. Nd5 {[%clk 0:00:24.6]} 18... Bf6 {[%clk 0:01:28.3]} 19. Bg5
{[%clk 0:00:20.4]} 19... Qf7 {[%clk 0:01:18.5]} 20. O-O-O {[%clk 0:00:15.4]}
20... Bxg5+ {[%clk 0:01:10.2]} 21. Qxg5 {[%clk 0:00:16.3]} 21... e6 {[%clk
0:01:09.3]} 22. Ne7+ {[%clk 0:00:12.7]} 22... Kh7 {[%clk 0:01:06.3]} 23. Nxc8
{[%clk 0:00:11.6]} 23... Raxc8 {[%clk 0:01:05.3]} 24. g3 {[%clk 0:00:10.7]}
24... Qxf2 {[%clk 0:01:01.1]} 25. Rd2 {[%clk 0:00:08.5]} 25... Qe3 {[%clk
0:00:52.5]} 26. Qe7+ {[%clk 0:00:04.5]} 26... Kh6 {[%clk 0:00:49.7]} 27. Qxe6
{[%clk 0:00:02.3]} 27... Rf2 {[%clk 0:00:43.2]} 28. Rd1 {[%clk 0:00:01.7]} 28...
Rcf8 {[%clk 0:00:42.9]} 0-1

[Event "Early-Titled-Tuesday-Blitz-October-03-2023"]
[Site "Chess.com"]
[Date "2023.10.03"]
[Round "9"]
[White "ExchangeAB"]
[Black "Quattroporte300"]
[Result "1-0"]
[WhiteElo "2492"]
[BlackElo "2378"]
[TimeControl "180+1"]
[EndTime "9:45:32 PDT"]
[Termination "ExchangeAB won by checkmate"]

1. d4 {[%clk 0:03:00.9]} 1... d5 {[%clk 0:02:57.8]} 2. Nc3 {[%clk 0:03:00.8]}
2... e6 {[%clk 0:02:54.6]} 3. Bf4 {[%clk 0:02:59.6]} 3... c5 {[%clk 0:02:53.7]}
4. e3 {[%clk 0:02:58.2]} 4... Nf6 {[%clk 0:02:50.7]} 5. Nb5 {[%clk 0:02:57.9]}
5... Na6 {[%clk 0:02:50.2]} 6. c3 {[%clk 0:02:58]} 6... Be7 {[%clk 0:02:48.7]}
7. a4 {[%clk 0:02:54.7]} 7... O-O {[%clk 0:02:48.6]} 8. Bd3 {[%clk 0:02:52.1]}
8... Bd7 {[%clk 0:02:48.3]} 9. Nf3 {[%clk 0:02:17.2]} 9... c4 {[%clk 0:02:40.8]}
10. Bc2 {[%clk 0:02:16.1]} 10... Bxb5 {[%clk 0:02:40.8]} 11. axb5 {[%clk
0:02:17]} 11... Nc7 {[%clk 0:02:41.2]} 12. Ne5 {[%clk 0:02:13.8]} 12... Nxb5
{[%clk 0:02:37.8]} 13. g4 {[%clk 0:02:13.6]} 13... Nd6 {[%clk 0:02:32]} 14. f3
{[%clk 0:02:11.9]} 14... Nd7 {[%clk 0:02:27]} 15. Ke2 {[%clk 0:02:07.2]} 15...
f6 {[%clk 0:02:21.6]} 16. Nxd7 {[%clk 0:02:04.8]} 16... Qxd7 {[%clk 0:02:22.5]}
17. Qf1 {[%clk 0:01:52.4]} 17... a5 {[%clk 0:02:09]} 18. Qh3 {[%clk 0:01:50.9]}
18... g6 {[%clk 0:02:04.8]} 19. Qg2 {[%clk 0:01:37.5]} 19... b5 {[%clk
0:02:03.5]} 20. h4 {[%clk 0:01:37.3]} 20... b4 {[%clk 0:01:40.3]} 21. g5 {[%clk
0:01:36.4]} 21... fxg5 {[%clk 0:01:11.5]} 22. hxg5 {[%clk 0:01:35.9]} 22... Rf7
{[%clk 0:01:11.2]} 23. Qh3 {[%clk 0:01:31.7]} 23... Nf5 {[%clk 0:00:57.4]} 24.
e4 {[%clk 0:01:24.6]} 24... dxe4 {[%clk 0:00:41.1]} 25. fxe4 {[%clk 0:01:25.5]}
25... Nxd4+ {[%clk 0:00:37.3]} 26. cxd4 {[%clk 0:01:21.9]} 26... Qxd4 {[%clk
0:00:37.7]} 27. Qxe6 {[%clk 0:01:03.9]} 27... Qxb2 {[%clk 0:00:31.1]} 28. Rac1
{[%clk 0:01:01.6]} 28... Qg7 {[%clk 0:00:10.1]} 29. Be5 {[%clk 0:00:51.9]} 29...
Qf8 {[%clk 0:00:09.4]} 30. Rxh7 {[%clk 0:00:45.4]} 30... Ra6 {[%clk 0:00:04.6]}
31. Rh8# {[%clk 0:00:44.8]} 1-0

[Event "Early-Titled-Tuesday-Blitz-October-03-2023"]
[Site "Chess.com"]
[Date "2023.10.03"]
[Round "9"]
[White "LUISMIGUELOV"]
[Black "Goi_Manne"]
[Result "0-1"]
[WhiteElo "2148"]
[BlackElo "2297"]
[TimeControl "180+1"]
[EndTime "9:45:35 PDT"]
[Termination "Goi_Manne won on time"]

1. e4 {[%clk 0:03:00.9]} 1... c6 {[%clk 0:03:00.1]} 2. Nf3 {[%clk 0:03:00.2]}
2... d5 {[%clk 0:03:01]} 3. Nc3 {[%clk 0:03:00.2]} 3... dxe4 {[%clk 0:03:01.2]}
4. Nxe4 {[%clk 0:03:00.4]} 4... Nf6 {[%clk 0:03:01.9]} 5. Nxf6+ {[%clk
0:02:59.2]} 5... exf6 {[%clk 0:03:02.8]} 6. Qe2+ {[%clk 0:02:54.1]} 6... Qe7
{[%clk 0:03:02]} 7. d4 {[%clk 0:02:51]} 7... Bf5 {[%clk 0:03:02.1]} 8. c3 {[%clk
0:02:48.6]} 8... Nd7 {[%clk 0:03:02.2]} 9. Bf4 {[%clk 0:02:45]} 9... h6 {[%clk
0:02:57.3]} 10. O-O-O {[%clk 0:02:37.8]} 10... Qxe2 {[%clk 0:02:56.8]} 11. Bxe2
{[%clk 0:02:36.9]} 11... g5 {[%clk 0:02:55.1]} 12. Bd2 {[%clk 0:02:10.5]} 12...
Bg7 {[%clk 0:02:54.2]} 13. Rhe1 {[%clk 0:02:09.7]} 13... O-O {[%clk 0:02:54]}
14. h3 {[%clk 0:02:03.6]} 14... Bg6 {[%clk 0:02:53.4]} 15. Nh2 {[%clk 0:02:00]}
15... f5 {[%clk 0:02:53.2]} 16. f3 {[%clk 0:01:53.2]} 16... f4 {[%clk 0:02:51]}
17. Bc4 {[%clk 0:01:50.9]} 17... b5 {[%clk 0:02:45.2]} 18. Bb3 {[%clk
0:01:49.4]} 18... a5 {[%clk 0:02:43.8]} 19. Ng4 {[%clk 0:01:45.9]} 19... Nb6
{[%clk 0:02:40.2]} 20. Ne5 {[%clk 0:01:42.5]} 20... Bxe5 {[%clk 0:02:35.7]} 21.
Rxe5 {[%clk 0:01:42.1]} 21... a4 {[%clk 0:02:35.3]} 22. Bc2 {[%clk 0:01:41.4]}
22... Bxc2 {[%clk 0:02:36]} 23. Kxc2 {[%clk 0:01:40.5]} 23... Nc4 {[%clk
0:02:35.1]} 24. Rc5 {[%clk 0:01:33.2]} 24... Rac8 {[%clk 0:02:32]} 25. Bc1
{[%clk 0:01:31.7]} 25... Rfe8 {[%clk 0:02:31]} 26. b3 {[%clk 0:01:19.5]} 26...
axb3+ {[%clk 0:02:19.9]} 27. axb3 {[%clk 0:01:18.9]} 27... Nd6 {[%clk
0:02:20.8]} 28. Kd3 {[%clk 0:01:07.7]} 28... Kg7 {[%clk 0:02:14]} 29. Rd2 {[%clk
0:01:02.4]} 29... Kg6 {[%clk 0:02:13.9]} 30. Re2 {[%clk 0:00:58.8]} 30... Rxe2
{[%clk 0:02:12.9]} 31. Kxe2 {[%clk 0:00:58.1]} 31... Nf5 {[%clk 0:02:07.5]} 32.
Bd2 {[%clk 0:00:42.6]} 32... Re8+ {[%clk 0:02:06.1]} 33. Kd3 {[%clk 0:00:41.9]}
33... Re6 {[%clk 0:02:05.9]} 34. d5 {[%clk 0:00:39]} 34... cxd5 {[%clk
0:02:03.9]} 35. Rxd5 {[%clk 0:00:35.6]} 35... Nh4 {[%clk 0:01:59.9]} 36. Rxb5
{[%clk 0:00:32.8]} 36... Nxg2 {[%clk 0:01:59.1]} 37. c4 {[%clk 0:00:31.9]} 37...
Ne3 {[%clk 0:01:57.7]} 38. Ra5 {[%clk 0:00:21.4]} 38... f5 {[%clk 0:01:52]} 39.
c5 {[%clk 0:00:15.6]} 39... h5 {[%clk 0:01:45.2]} 40. Rb5 {[%clk 0:00:12]} 40...
Nd5 {[%clk 0:01:25.9]} 41. b4 {[%clk 0:00:03.4]} 41... g4 {[%clk 0:01:22.7]} 42.
c6 {[%clk 0:00:01.3]} 42... gxh3 {[%clk 0:01:13.9]} 0-1

[Event "Early-Titled-Tuesday-Blitz-October-03-2023"]
[Site "Chess.com"]
[Date "2023.10.03"]
[Round "9"]
[White "kingapolak"]
[Black "Actuary44"]
[Result "0-1"]
[WhiteElo "1783"]
[BlackElo "2507"]
[TimeControl "180+1"]
[EndTime "9:45:36 PDT"]
[Termination "Actuary44 won by resignation"]

1. e4 {[%clk 0:03:00.9]} 1... b6 {[%clk 0:02:59.4]} 2. g3 {[%clk 0:02:57.7]}
2... Bb7 {[%clk 0:02:59.7]} 3. Bg2 {[%clk 0:02:57.9]} 3... e6 {[%clk 0:03:00.4]}
4. d4 {[%clk 0:02:53.5]} 4... Nf6 {[%clk 0:03:00.7]} 5. Nc3 {[%clk 0:02:51.4]}
5... Bb4 {[%clk 0:03:00]} 6. Bg5 {[%clk 0:02:38.2]} 6... h6 {[%clk 0:03:00.3]}
7. Bxf6 {[%clk 0:02:33.3]} 7... Qxf6 {[%clk 0:03:01.2]} 8. Ne2 {[%clk
0:02:26.3]} 8... Qe7 {[%clk 0:02:51.6]} 9. Qd2 {[%clk 0:02:20.5]} 9... c5 {[%clk
0:02:46]} 10. a3 {[%clk 0:02:13.8]} 10... cxd4 {[%clk 0:02:35.7]} 11. Nxd4
{[%clk 0:02:10.4]} 11... Bc5 {[%clk 0:02:24.2]} 12. O-O-O {[%clk 0:02:04.4]}
12... a5 {[%clk 0:02:16.3]} 13. Ndb5 {[%clk 0:02:02.3]} 13... O-O {[%clk
0:02:12.5]} 14. Nc7 {[%clk 0:01:55.4]} 14... Rc8 {[%clk 0:02:03.8]} 15. Nxa8
{[%clk 0:01:54.2]} 15... Bxa8 {[%clk 0:02:04.7]} 16. Kb1 {[%clk 0:01:46]} 16...
Bc6 {[%clk 0:01:59.5]} 17. f4 {[%clk 0:01:42.2]} 17... b5 {[%clk 0:01:55.9]} 18.
e5 {[%clk 0:01:41.3]} 18... b4 {[%clk 0:01:46]} 19. axb4 {[%clk 0:01:34.9]}
19... Bxb4 {[%clk 0:01:35.8]} 20. Bxc6 {[%clk 0:01:20.9]} 20... Rxc6 {[%clk
0:01:36.7]} 21. Qd4 {[%clk 0:01:15.5]} 21... Bxc3 {[%clk 0:01:32.8]} 22. bxc3
{[%clk 0:01:14.7]} 22... Qa3 {[%clk 0:01:29.3]} 23. c4 {[%clk 0:00:54.3]} 23...
Na6 {[%clk 0:01:19.6]} 24. Rd3 {[%clk 0:00:51.5]} 24... Qa4 {[%clk 0:01:12.3]}
25. Rb3 {[%clk 0:00:46.7]} 25... Rxc4 {[%clk 0:01:06.4]} 26. Qb6 {[%clk
0:00:39.7]} 26... Nb4 {[%clk 0:01:03.9]} 27. Rb2 {[%clk 0:00:14.7]} 27... Rxc2
{[%clk 0:00:56.2]} 28. Qb8+ {[%clk 0:00:08.8]} 28... Kh7 {[%clk 0:00:55.9]} 29.
Qxb4 {[%clk 0:00:04.2]} 29... axb4 {[%clk 0:00:50.1]} 30. Rxc2 {[%clk
0:00:04.6]} 30... b3 {[%clk 0:00:49.9]} 31. Rb2 {[%clk 0:00:04.7]} 31... Qe4+
{[%clk 0:00:49.7]} 32. Ka1 {[%clk 0:00:03.9]} 32... Qxh1+ {[%clk 0:00:50.6]} 0-1

[Event "Early-Titled-Tuesday-Blitz-October-03-2023"]
[Site "Chess.com"]
[Date "2023.10.03"]
[Round "9"]
[White "ezkybel"]
[Black "Vision_64"]
[Result "1-0"]
[WhiteElo "2487"]
[BlackElo "2347"]
[TimeControl "180+1"]
[EndTime "9:45:38 PDT"]
[Termination "ezkybel won by resignation"]

1. b3 {[%clk 0:03:00.9]} 1... c5 {[%clk 0:02:49.9]} 2. Bb2 {[%clk 0:03:00.3]}
2... Nc6 {[%clk 0:02:49.8]} 3. e3 {[%clk 0:03:00.6]} 3... d5 {[%clk 0:02:49.2]}
4. f4 {[%clk 0:03:00.7]} 4... a6 {[%clk 0:02:44.9]} 5. Nf3 {[%clk 0:03:00.9]}
5... Bg4 {[%clk 0:02:41.2]} 6. Be2 {[%clk 0:03:00.9]} 6... Bxf3 {[%clk
0:02:40.9]} 7. Bxf3 {[%clk 0:03:01]} 7... e6 {[%clk 0:02:41.3]} 8. Qe2 {[%clk
0:03:01.1]} 8... Nf6 {[%clk 0:02:40.8]} 9. a3 {[%clk 0:03:01.6]} 9... Be7 {[%clk
0:02:40.5]} 10. d3 {[%clk 0:03:01.9]} 10... Qb6 {[%clk 0:02:33.1]} 11. Nd2
{[%clk 0:03:01.1]} 11... h6 {[%clk 0:02:30]} 12. O-O {[%clk 0:03:00.9]} 12...
O-O {[%clk 0:02:06.8]} 13. Kh1 {[%clk 0:02:59.1]} 13... Rfd8 {[%clk 0:02:04.8]}
14. g4 {[%clk 0:02:57.5]} 14... Rac8 {[%clk 0:01:54]} 15. Rab1 {[%clk
0:02:55.2]} 15... Nb8 {[%clk 0:01:44.3]} 16. g5 {[%clk 0:02:51.4]} 16... Nh7
{[%clk 0:01:32.8]} 17. gxh6 {[%clk 0:02:49.8]} 17... g6 {[%clk 0:01:32.5]} 18.
Rg1 {[%clk 0:02:41.1]} 18... d4 {[%clk 0:01:30.5]} 19. e4 {[%clk 0:02:36]} 19...
Qc7 {[%clk 0:01:28.7]} 20. f5 {[%clk 0:02:34.4]} 20... exf5 {[%clk 0:01:22.1]}
21. exf5 {[%clk 0:02:33.9]} 21... Bg5 {[%clk 0:01:20.2]} 22. Ne4 {[%clk
0:02:26.3]} 22... Be3 {[%clk 0:01:14.3]} 23. Rg2 {[%clk 0:02:16.8]} 23... g5
{[%clk 0:00:59.6]} 24. h4 {[%clk 0:02:00.8]} 24... f6 {[%clk 0:00:59.5]} 25.
hxg5 {[%clk 0:02:00.9]} 25... fxg5 {[%clk 0:00:59.7]} 26. Bc1 {[%clk 0:01:56.8]}
26... Qf4 {[%clk 0:00:57.4]} 27. Rg4 {[%clk 0:01:55.1]} 27... Qxf5 {[%clk
0:00:56]} 28. Bxe3 {[%clk 0:01:54.5]} 28... dxe3 {[%clk 0:00:56]} 29. Rbg1
{[%clk 0:01:43.7]} 29... Rc6 {[%clk 0:00:45.9]} 30. Rxg5+ {[%clk 0:01:42.2]}
30... Nxg5 {[%clk 0:00:43.9]} 31. Rxg5+ {[%clk 0:01:42.2]} 31... Qxg5 {[%clk
0:00:43.8]} 32. Nxg5 {[%clk 0:01:42.2]} 32... Rxh6+ {[%clk 0:00:43.8]} 33. Kg2
{[%clk 0:01:37.8]} 33... Rg6 {[%clk 0:00:43.2]} 34. Qxe3 {[%clk 0:01:38.3]}
34... Nc6 {[%clk 0:00:39.9]} 35. Bh5 {[%clk 0:01:35.3]} 35... Rg7 {[%clk
0:00:38.5]} 36. Qe6+ {[%clk 0:01:34.9]} 36... Kh8 {[%clk 0:00:37.3]} 37. Qh6+
{[%clk 0:01:27.9]} 37... Kg8 {[%clk 0:00:37.7]} 38. Qe6+ {[%clk 0:01:23.2]}
38... Kh8 {[%clk 0:00:37.2]} 39. Kh3 {[%clk 0:01:22.5]} 39... Rf8 {[%clk
0:00:24.7]} 40. Qh6+ {[%clk 0:01:20.2]} 40... Kg8 {[%clk 0:00:24.8]} 41. Bf3
{[%clk 0:01:17.7]} 41... Ne7 {[%clk 0:00:17.3]} 42. Bg4 {[%clk 0:01:14]} 42...
Rf2 {[%clk 0:00:14.4]} 43. Be6+ {[%clk 0:01:10.6]} 43... Kf8 {[%clk 0:00:14.7]}
44. Qh8+ {[%clk 0:01:10.5]} 44... Ng8 {[%clk 0:00:14.3]} 45. Nh7+ {[%clk
0:01:10.3]} 1-0